Workbook

Sheet 1
A1: Школа | B1: МБОУ "Гимназия №28" Вахитовского района г. Казани | E1: Отд./корп | I1: День | J1: 2023-05-23
A3: Прием пищи | B3: Раздел | C3: № рец. | D3: Блюдо | E3: Выход, г | F3: Цена | G3: Калорийность | H3: Белки | I3: Жиры | J3: Углеводы
A4: Завтрак | B4: гор.блюдо | C4: ='[1]8-13, 22-27.05.2023'!C11 -> ТТК 2021г/70/2015 | D4: ='[1]8-13, 22-27.05.2023'!D11 -> Рагу из куриных грудок/Овощи натуральные соленые (огурцы)-доп.гарн | E4: ='[1]8-13, 22-27.05.2023'!E11 -> 220 | F4: ='[1]8-13, 22-27.05.2023'!F11 -> 0.00 | G4: ='[1]8-13, 22-27.05.2023'!G11 -> 307 | H4: ='[1]8-13, 22-27.05.2023'!H11 -> 13.26 | I4: ='[1]8-13, 22-27.05.2023'!I11 -> 15.26 | J4: ='[1]8-13, 22-27.05.2023'!J11 -> 28.96
B5: гор блюдо
B6: гор.напиток | C6: ='[1]8-13, 22-27.05.2023'!C12 -> ТТК 2021 г | D6: ='[1]8-13, 22-27.05.2023'!D12 -> Кисель из концетрата | E6: ='[1]8-13, 22-27.05.2023'!E12 -> 180 | F6: ='[1]8-13, 22-27.05.2023'!F12 -> 0.00 | G6: ='[1]8-13, 22-27.05.2023'!G12 -> 47 | H6: ='[1]8-13, 22-27.05.2023'!H12 -> 0.00 | I6: ='[1]8-13, 22-27.05.2023'!I12 -> 0.00 | J6: ='[1]8-13, 22-27.05.2023'!J12 -> 11.80
B7: хлеб | D7: Хлеб ржано-пшеничный/Хлеб пшеничный | E7: 40 | G7: 91 | H7: 2.52 | I7: 0.36 | J7: 18.84
B8: фрукты | C8: ='[1]8-13, 22-27.05.2023'!C16 -> № 338/2015г | D8: ='[1]8-13, 22-27.05.2023'!D16 -> Плоды свежие (яблоки) | E8: ='[1]8-13, 22-27.05.2023'!E16 -> 100 | F8: ='[1]8-13, 22-27.05.2023'!F16 -> 0.00 | G8: ='[1]8-13, 22-27.05.2023'!G16 -> 47 | H8: ='[1]8-13, 22-27.05.2023'!H16 -> 0.40 | I8: ='[1]8-13, 22-27.05.2023'!I16 -> 0.40 | J8: ='[1]8-13, 22-27.05.2023'!J16 -> 9.80
A9: ИТОГО | E9: =SUM(E4:E8) -> 540 | G9: =SUM(G4:G8) -> 492 | H9: =SUM(H4:H8) -> 16.18 | I9: =SUM(I4:I8) -> 16.02 | J9: =SUM(J4:J8) -> 69.40
A10: Завтрак 2 | B10: фрукты
A13: Обед | B13: закуска
B14: 1 блюдо
B15: 2 блюдо
B16: гарнир
B17: сладкое
B18: хлеб бел.
B19: хлеб черн.
